bitfinex-derivatives/quotes_SOLF0:USTF0_20250817
["timestamp","ask_amount","ask_price","bid_price","bid_amount"]
[1755390501165,1.26757933,188.76,188.68,1.26757933]
[1755390501356,4.05368706,188.75,188.68,1.26757933]
[1755390501556,4.05368706,188.74,188.68,1.26757933]
[1755390501758,4.05368706,188.73,188.68,1.26757933]
[1755390502060,4.05368706,188.72,188.68,1.26757933]
[1755390502278,1.26757933,188.76,188.68,1.26757933]
[1755390502461,4.05397651,188.75,188.68,1.26757933]
[1755390502656,4.05397651,188.74,188.68,1.26757933]
[1755390502856,4.05397651,188.73,188.68,1.26757933]
[1755390503050,4.05397651,188.72,188.68,1.26757933]
[1755390503254,1.26757933,188.76,188.68,1.26757933]
[1755390503455,4.05414469,188.75,188.68,1.26757933]
[1755390503665,4.05414469,188.74,188.68,1.26757933]
[1755390503962,4.05414469,188.73,188.68,1.26757933]
[1755390504164,4.05414469,188.72,188.68,1.26757933]
[1755390504360,1.26757933,188.76,188.68,1.26757933]
[1755390504561,4.05492405,188.75,188.68,1.26757933]
[1755390504859,4.05492405,188.74,188.68,1.26757933]
[1755390505061,4.05492405,188.73,188.68,1.26757933]
[1755390505259,1.26757933,188.76,188.68,1.26757933]
[1755390505260,4.05492405,188.72,188.68,1.26757933]
[1755390505461,1.26757933,188.76,188.68,1.26757933]
[1755390505763,1.26757933,188.74,188.68,1.26757933]
[1755390505964,4.05539318,188.73,188.68,1.26757933]
[1755390506164,4.05539318,188.72,188.68,1.26757933]
[1755390506364,1.26757933,188.74,188.68,1.26757933]
[1755390506563,4.05568599,188.73,188.68,1.26757933]
[1755390506763,4.05568599,188.72,188.68,1.26757933]
[1755390506964,1.26757933,188.74,188.68,1.26757933]
[1755390507167,4.05568599,188.73,188.68,1.26757933]
[1755390507465,4.05568599,188.72,188.68,1.26757933]
[1755390507664,4.05568599,188.71,188.68,1.26757933]
[1755390507963,1.26757933,188.74,188.68,1.26757933]
[1755390508163,4.05627269,188.73,188.68,1.26757933]
[1755390508357,4.05627269,188.72,188.68,1.26757933]
[1755390508553,4.05627269,188.71,188.68,1.26757933]
[1755390508757,1.26757933,188.74,188.68,1.26757933]
[1755390508958,4.05692638,188.73,188.68,1.26757933]
[1755390509157,4.05692638,188.72,188.68,1.26757933]
[1755390509357,4.05692638,188.71,188.68,1.26757933]
[1755390509579,1.26757933,188.74,188.68,1.26757933]
[1755390509866,4.05744175,188.73,188.68,1.26757933]
[1755390510067,4.05744175,188.72,188.68,1.26757933]
[1755390510367,4.05744175,188.71,188.68,1.26757933]
[1755390510567,1.26757933,188.74,188.68,1.26757933]
[1755390510769,4.05670337,188.73,188.68,1.26757933]
[1755390510964,4.05670337,188.72,188.68,1.26757933]
[1755390511169,4.05670337,188.71,188.68,1.26757933]
[1755390511364,1.26757933,188.74,188.68,1.26757933]
[1755390511558,4.0575836,188.73,188.68,1.26757933]
[1755390511768,4.0575836,188.72,188.68,1.26757933]
[1755390511968,4.0575836,188.71,188.68,1.26757933]
[1755390512268,4.0575836,188.7,188.68,1.26757933]
[1755390512467,1.26757933,188.74,188.68,1.26757933]
[1755390512668,4.05877653,188.73,188.68,1.26757933]
[1755390512867,1.26757933,188.74,188.68,1.26757933]
[1755390512868,4.05877653,188.72,188.68,1.26757933]
[1755390513167,4.05877653,188.71,188.68,1.26757933]
[1755390513367,4.05877653,188.7,188.68,1.26757933]
[1755390513570,1.26757933,188.74,188.68,1.26757933]
[1755390513769,4.05978581,188.73,188.68,1.26757933]
[1755390513971,4.05978581,188.72,188.68,1.26757933]
[1755390514169,4.05978581,188.71,188.68,1.26757933]
[1755390514370,4.05978581,188.7,188.68,1.26757933]
[1755390514570,1.26757933,188.74,188.68,1.26757933]
[1755390514781,4.06130929,188.73,188.68,1.26757933]
[1755390514970,4.06130929,188.72,188.68,1.26757933]
[1755390515171,4.06130929,188.71,188.68,1.26757933]
[1755390515471,4.06130929,188.7,188.68,1.26757933]
[1755390515672,4.06130929,188.69,188.68,1.26757933]
[1755390515972,4.06130929,188.73,188.68,1.26757933]
[1755390516168,4.06130929,188.72,188.68,1.26757933]
[1755390516374,4.06130929,188.71,188.68,1.26757933]
[1755390516570,4.06130929,188.7,188.68,1.26757933]
[1755390516774,4.06130929,188.69,188.68,1.26757933]
[1755390516974,4.06130929,188.74,188.68,1.26757933]
[1755390517177,8.49089496,188.73,188.68,1.26757933]
[1755390517372,4.06130929,188.72,188.68,1.26757933]
[1755390517572,4.06130929,188.71,188.68,1.26757933]
[1755390517774,4.06130929,188.7,188.68,1.26757933]
[1755390517973,4.06130929,188.69,188.68,1.26757933]
[1755390519275,4.06130929,188.75,188.68,6.56407933]
[1755390519470,8.49396322,188.74,188.7,1.26757933]
[1755390519669,8.49396322,188.73,188.7,1.26757933]
[1755390519873,4.06130929,188.72,188.7,1.26757933]
[1755390520171,4.06130929,188.71,188.7,1.26757933]
[1755390525579,5.92054089,188.79,188.7,1.78757933]
[1755390525776,4.45689755,188.78,188.75,1.26757933]
[1755390525971,5.92054089,188.82,188.75,1.26757933]
[1755390526175,4.45617186,188.81,188.75,1.26757933]
[1755390526376,4.45617186,188.8,188.73,5.295]
[1755390526580,4.45617186,188.79,188.76,1.26757933]
[1755390526777,5.92054089,188.82,188.76,1.26757933]
[1755390527078,4.45236681,188.81,188.76,1.26757933]
[1755390527277,4.45236681,188.8,188.76,1.26757933]
[1755390527578,6.84257838,188.83,188.78,1.26757933]
[1755390527772,4.44993812,188.82,188.78,1.26757933]
[1755390527972,4.44993812,188.81,188.78,1.26757933]
[1755390528177,4.44993812,188.8,188.78,1.26757933]
[1755390528379,6.84257838,188.83,188.78,1.26757933]
[1755390528577,4.44785067,188.82,188.78,1.26757933]
[1755390528777,4.44785067,188.81,188.78,1.26757933]
[1755390528974,4.44785067,188.8,188.78,1.26757933]
[1755390529276,6.84257838,188.83,188.78,1.26757933]
[1755390529480,4.44614013,188.82,188.78,1.26757933]
[1755390529676,4.44614013,188.81,188.78,1.26757933]
[1755390529884,0.92203749,188.83,188.78,1.26757933]
[1755390530199,4.44614205,188.82,188.78,1.26757933]
[1755390530378,4.44614205,188.81,188.78,1.26757933]
[1755390530573,0.92203749,188.83,188.78,1.26757933]
[1755390530774,4.44464331,188.82,188.78,1.26757933]
[1755390530973,4.44464331,188.81,188.78,1.26757933]
[1755390531177,0.92203749,188.83,188.78,1.26757933]
[1755390531379,1.26757933,188.79,188.74,1.26757933]
[1755390533084,1.26757933,188.81,188.74,1.26757933]
[1755390537590,4.01841448,188.8,188.74,1.26757933]
[1755390537790,4.01841448,188.79,188.74,1.26757933]
[1755390537990,4.01841448,188.78,188.74,1.26757933]
[1755390538186,4.01841448,188.77,188.74,1.26757933]
[1755390538491,1.26757933,188.81,188.74,1.26757933]
[1755390538689,4.0181897,188.8,188.74,1.26757933]
[1755390538889,4.0181897,188.79,188.74,1.26757933]
[1755390539091,4.0181897,188.78,188.74,1.26757933]
[1755390539390,4.0181897,188.77,188.74,1.26757933]
[1755390539596,1.26757933,188.81,188.74,1.26757933]
[1755390539791,4.01801624,188.8,188.74,1.26757933]
[1755390539991,1.26757933,188.81,188.74,1.26757933]
[1755390539992,4.01801624,188.79,188.74,1.26757933]
[1755390540291,4.01801624,188.78,188.74,1.26757933]
[1755390540494,4.01801624,188.77,188.74,1.26757933]
[1755390540791,1.26757933,188.81,188.74,1.26757933]
[1755390541094,4.01800537,188.8,188.74,1.26757933]
[1755390541290,4.01800537,188.79,188.74,1.26757933]
[1755390541492,4.01800537,188.78,188.74,1.26757933]
[1755390541687,4.01800537,188.77,188.74,1.26757933]
[1755390541884,1.26757933,188.81,188.74,1.26757933]
[1755390542091,4.01790155,188.8,188.74,1.26757933]
[1755390542298,4.01790155,188.79,188.74,1.26757933]
[1755390542590,4.01790155,188.78,188.74,1.26757933]
[1755390542790,4.01790155,188.77,188.74,1.26757933]
[1755390542992,1.26757933,188.81,188.74,1.26757933]
[1755390543195,4.01737841,188.8,188.74,1.26757933]
[1755390543391,4.01737841,188.79,188.74,1.26757933]
[1755390543592,4.01737841,188.78,188.74,1.26757933]
[1755390543792,4.01737841,188.77,188.74,1.26757933]
[1755390543990,1.26757933,188.81,188.74,1.26757933]
[1755390544192,4.01737518,188.8,188.74,1.26757933]
[1755390544391,4.01737518,188.79,188.74,1.26757933]
[1755390544594,4.01737518,188.78,188.74,1.26757933]
[1755390544891,4.01737518,188.77,188.74,1.26757933]
[1755390545091,1.26757933,188.81,188.74,1.26757933]
[1755390545292,4.01730419,188.8,188.74,1.26757933]
[1755390545495,4.01730419,188.79,188.74,1.26757933]
[1755390545803,4.01730419,188.78,188.74,1.26757933]
[1755390545991,4.01730419,188.77,188.74,1.26757933]
[1755390546192,1.26757933,188.81,188.74,1.26757933]
[1755390546393,4.01746296,188.8,188.74,1.26757933]
[1755390546593,4.01746296,188.79,188.74,1.26757933]
[1755390546791,4.01746296,188.78,188.74,1.26757933]
[1755390546991,4.01746296,188.77,188.74,1.26757933]
[1755390547289,1.26757933,188.81,188.74,1.26757933]
[1755390547484,4.01743719,188.8,188.74,1.26757933]
[1755390547685,4.01743719,188.79,188.74,1.26757933]
[1755390547890,4.01743719,188.78,188.74,1.26757933]
[1755390548090,4.01743719,188.77,188.74,1.26757933]
[1755390548292,1.26757933,188.81,188.74,1.26757933]
[1755390548591,4.01743113,188.8,188.74,1.26757933]
[1755390548793,4.01743113,188.79,188.74,1.26757933]
[1755390548989,1.26757933,188.81,188.74,1.26757933]
[1755390548990,4.01743113,188.78,188.74,1.26757933]
[1755390549188,4.01743113,188.77,188.74,1.26757933]
[1755390549394,1.26757933,188.81,188.74,1.26757933]
[1755390549593,4.01744014,188.8,188.74,1.26757933]
[1755390549793,4.01744014,188.79,188.74,1.26757933]
[1755390549994,4.01744014,188.78,188.74,1.26757933]
[1755390550194,4.01744014,188.77,188.74,1.26757933]
[1755390550392,1.26757933,188.81,188.74,1.26757933]
[1755390550590,4.01751714,188.8,188.74,1.26757933]
[1755390550792,4.01751714,188.79,188.74,1.26757933]
[1755390551005,4.01751714,188.78,188.74,1.26757933]
[1755390551190,4.01751714,188.77,188.74,1.26757933]
[1755390551392,1.26757933,188.81,188.74,1.26757933]
[1755390551596,4.01762788,188.8,188.74,1.26757933]
[1755390551795,4.01762788,188.79,188.74,1.26757933]
[1755390551991,4.01762788,188.78,188.74,1.26757933]
[1755390552192,4.01762788,188.77,188.74,1.26757933]
[1755390552490,1.26757933,188.81,188.74,1.26757933]
[1755390552696,4.01777343,188.8,188.74,1.26757933]
[1755390552895,4.01777343,188.79,188.74,1.26757933]
[1755390553098,4.01777343,188.78,188.74,1.26757933]
[1755390553292,4.01777343,188.77,188.74,1.26757933]
[1755390553492,1.26757933,188.81,188.74,1.26757933]
[1755390553696,4.01795415,188.8,188.74,1.26757933]
[1755390553997,4.01795415,188.79,188.74,1.26757933]
[1755390554196,4.01795415,188.78,188.74,1.26757933]
[1755390554398,4.01795415,188.77,188.74,1.26757933]
[1755390554592,1.26757933,188.81,188.74,1.26757933]
[1755390554797,4.01804765,188.8,188.74,1.26757933]
[1755390555096,4.01804765,188.79,188.74,1.26757933]
[1755390555293,4.01804765,188.78,188.74,1.26757933]
[1755390555494,4.01804765,188.77,188.74,1.26757933]
[1755390555696,1.26757933,188.81,188.74,1.26757933]
[1755390555894,8.46323599,188.8,188.74,1.26757933]
[1755390556088,4.01841843,188.79,188.74,1.26757933]
[1755390556294,4.01841843,188.78,188.74,1.26757933]
[1755390556496,4.01841843,188.77,188.74,1.26757933]
[1755390556697,1.26757933,188.81,188.74,1.26757933]
[1755390556896,8.46417409,188.8,188.74,1.26757933]
[1755390557097,4.01886159,188.79,188.74,1.26757933]
[1755390557397,4.01886159,188.78,188.74,1.26757933]
[1755390557695,4.01886159,188.77,188.74,1.26757933]
[1755390557896,4.01886159,188.76,188.74,1.26757933]
[1755390558100,1.26757933,188.81,188.74,1.26757933]
[1755390558398,8.46605116,188.8,188.74,1.26757933]
[1755390558600,4.01957307,188.79,188.74,1.26757933]
[1755390558800,4.01957307,188.78,188.74,1.26757933]
[1755390559002,4.01957307,188.77,188.74,1.26757933]
[1755390559303,4.01957307,188.76,188.74,1.26757933]
[1755390559503,1.26757933,188.81,188.74,1.26757933]
[1755390559705,8.46774586,188.8,188.74,1.26757933]
[1755390560006,4.02058538,188.79,188.74,1.26757933]
[1755390560205,4.02058538,188.78,188.74,1.26757933]
[1755390560503,4.02058538,188.77,188.74,1.26757933]
[1755390560695,4.02058538,188.76,188.74,1.26757933]
[1755390560993,1.26757933,188.81,188.74,1.26757933]
[1755390561191,8.46919331,188.8,188.74,1.26757933]
[1755390561395,4.02127366,188.79,188.74,1.26757933]
[1755390561596,4.02127366,188.78,188.74,1.26757933]
[1755390561796,4.02127366,188.77,188.74,1.26757933]
[1755390561999,4.02127366,188.76,188.74,1.26757933]
[1755390562202,1.26757933,188.81,188.74,1.26757933]
[1755390562405,8.47191203,188.8,188.74,1.26757933]
[1755390562704,8.47191203,188.79,188.74,1.26757933]
[1755390562904,4.02219591,188.78,188.74,1.26757933]
[1755390563102,4.02219591,188.77,188.74,1.26757933]
[1755390563302,4.02219591,188.76,188.74,1.26757933]
[1755390563503,1.26757933,188.81,188.74,1.26757933]
[1755390563709,8.47466257,188.8,188.74,1.26757933]
[1755390563911,8.47466257,188.79,188.74,1.26757933]
[1755390564206,4.02387459,188.78,188.74,1.26757933]
[1755390564501,4.02387459,188.77,188.74,1.26757933]
[1755390564706,4.02387459,188.76,188.74,1.26757933]
[1755390564910,4.02387459,188.75,188.74,1.26757933]
[1755390565101,4.02387459,188.8,188.74,1.26757933]
[1755390565312,8.47670489,188.79,188.74,1.26757933]
[1755390565603,4.02387459,188.78,188.74,1.26757933]
[1755390565803,4.02387459,188.77,188.74,1.26757933]
[1755390565998,4.02387459,188.76,188.74,1.26757933]
[1755390566205,4.02387459,188.75,188.74,1.26757933]
[1755390566907,4.02387459,188.8,188.74,1.26757933]
[1755390567109,8.47919839,188.79,188.74,1.26757933]
[1755390567408,8.47919839,188.78,188.74,1.26757933]
[1755390567609,4.02387459,188.77,188.74,1.26757933]
[1755390567808,4.02387459,188.76,188.74,1.26757933]
[1755390568009,4.02387459,188.75,188.74,1.26757933]
[1755390582523,4.02387459,188.75,188.7,1.26757933]
[1755390582724,4.02387459,188.74,188.7,1.26757933]
[1755390582926,4.02387459,188.73,188.7,1.26757933]
[1755390583124,4.02387459,188.72,188.7,1.26757933]
[1755390583323,4.02387459,188.71,188.7,1.26757933]
[1755390584326,4.02387459,188.76,188.7,1.26757933]
[1755390584523,8.88420068,188.75,188.7,1.26757933]
[1755390584724,8.88420068,188.74,188.7,1.26757933]
[1755390584926,8.88420068,188.73,188.7,1.26757933]
[1755390585128,8.88420068,188.72,188.7,1.26757933]
[1755390585328,4.03200139,188.71,188.7,1.26757933]
[1755390585828,5.92054089,188.79,188.7,1.26757933]
[1755390586029,4.8591689,188.78,188.73,1.26757933]
[1755390586229,4.8591689,188.77,188.73,1.26757933]
[1755390586430,4.8591689,188.76,188.73,1.26757933]
[1755390586728,4.8591689,188.75,188.73,1.26757933]
[1755390586928,4.8591689,188.74,188.73,1.26757933]
[1755390590836,4.8591689,188.74,188.64,91.22198119]
[1755390591034,4.8591689,188.73,188.69,1.26757933]
[1755390591334,4.8591689,188.72,188.69,1.26757933]
[1755390591635,7.18812022,188.77,188.69,1.26757933]
[1755390591636,4.8591689,188.71,188.69,1.26757933]
[1755390591833,7.18812022,188.77,188.69,1.26757933]
[1755390592143,4.85245786,188.76,188.69,1.26757933]
[1755390592325,4.85245786,188.75,188.69,1.26757933]
[1755390592527,4.85245786,188.74,188.69,1.26757933]
[1755390592731,4.85245786,188.73,188.69,1.26757933]
[1755390593026,4.85245786,188.72,188.69,1.26757933]
[1755390593330,1.26757933,188.77,188.69,1.26757933]
[1755390593531,4.85074873,188.76,188.69,1.26757933]
[1755390593732,4.85074873,188.75,188.71,1.26757933]
[1755390593936,4.85074873,188.74,188.71,1.26757933]
[1755390594127,4.85074873,188.73,188.71,1.26757933]
[1755390594331,4.85074873,188.72,188.71,1.26757933]
[1755390597743,8.8548797,188.72,188.71,1.26757933]
[1755390602146,7.18812022,188.79,188.71,1.26757933]
[1755390602147,5.92054089,188.79,188.71,1.26757933]
[1755390602348,8.95034154,188.78,188.75,1.26757933]
[1755390602549,4.94576045,188.77,188.75,1.26757933]
[1755390602752,4.94576045,188.76,188.75,1.26757933]
[1755390606654,4.94576045,188.76,188.73,1.26757933]
[1755390606856,4.94576045,188.75,188.73,1.26757933]
[1755390607150,4.94576045,188.74,188.73,1.26757933]
[1755390609350,4.94576045,188.74,188.71,1.26757933]
[1755390609548,4.94576045,188.73,188.68,1.26757933]
[1755390609754,4.94576045,188.72,188.68,1.26757933]
[1755390609948,4.94576045,188.71,188.68,1.26757933]
[1755390610155,4.94576045,188.7,188.68,1.26757933]
[1755390610355,1.26757933,188.75,188.68,1.26757933]
[1755390610552,4.94288019,188.74,188.67,1.26757933]
[1755390610752,4.94288019,188.73,188.67,1.26757933]
[1755390610953,4.94288019,188.72,188.67,1.26757933]
[1755390611158,4.94288019,188.71,188.67,1.26757933]
[1755390611453,4.94288019,188.7,188.67,1.26757933]
[1755390611654,4.94288019,188.69,188.67,1.26757933]
[1755390611851,1.26757933,188.75,188.67,1.26757933]
[1755390612046,4.94108785,188.74,188.67,1.26757933]
[1755390612248,1.26757933,188.75,188.67,1.26757933]
[1755390612447,4.94116222,188.74,188.67,1.26757933]
[1755390612655,4.94116222,188.73,188.67,1.26757933]
[1755390612956,4.94116222,188.72,188.67,1.26757933]
[1755390613157,4.94116222,188.71,188.67,1.26757933]
[1755390613361,4.94116222,188.7,188.67,1.26757933]
[1755390613556,4.94116222,188.69,188.67,1.26757933]
[1755390613757,1.26757933,188.73,188.67,1.26757933]
[1755390613958,4.93855382,188.72,188.67,1.26757933]
[1755390614158,8.91973624,188.71,188.67,1.26757933]
[1755390614457,8.91973624,188.7,188.67,1.26757933]
[1755390614657,8.91973624,188.69,188.67,1.26757933]
[1755390614958,1.26757933,188.73,188.67,1.26757933]
[1755390615158,8.91763469,188.72,188.67,1.26757933]
[1755390615354,3.98038658,188.71,188.67,1.26757933]
[1755390615560,8.91691595,188.7,188.67,1.26757933]
[1755390615861,8.91691595,188.69,188.65,1.26757933]
[1755390616055,1.26757933,188.73,188.65,1.26757933]
[1755390616356,8.91635457,188.72,188.65,1.26757933]
[1755390616560,68.65826994,188.82,188.64,49.22198119]
[1755390616561,10.1839339,188.71,188.64,49.22198119]
[1755390616859,8.91635457,188.7,188.64,49.22198119]
[1755390617061,8.91635457,188.69,188.64,49.22198119]
[1755390617260,8.91635457,188.68,188.64,49.22198119]
[1755390617461,8.91635457,188.67,188.64,49.22198119]
[1755390617760,1.26757933,188.71,188.64,49.22198119]
[1755390617967,8.9315356,188.7,188.64,49.22198119]
[1755390618261,8.9315356,188.69,188.64,49.22198119]
[1755390618463,8.9315356,188.68,188.64,49.22198119]
[1755390618665,3.99753696,188.67,188.64,49.22198119]
[1755390618864,1.26757933,188.71,188.64,49.22198119]
[1755390619063,8.92940895,188.7,188.64,49.22198119]
[1755390619363,8.92940895,188.69,188.64,49.22198119]
[1755390619557,8.92940895,188.68,188.64,49.22198119]
[1755390619754,1.26757933,188.71,188.64,49.22198119]
[1755390619953,8.92761542,188.7,188.64,49.22198119]
[1755390620166,8.92761542,188.69,188.64,49.22198119]
[1755390620359,8.92761542,188.68,188.64,49.22198119]
[1755390620560,1.26757933,188.71,188.64,49.22198119]
[1755390620760,8.92610836,188.7,188.64,49.22198119]
[1755390620963,8.92610836,188.69,188.64,49.22198119]
[1755390621165,8.92610836,188.68,188.64,49.22198119]
[1755390621367,8.92516216,188.67,188.61,1.26757933]
[1755390621562,8.92516216,188.66,188.6,1.26757933]
[1755390621864,8.92516216,188.65,188.6,1.26757933]
[1755390622056,1.26757933,188.67,188.6,1.26757933]
[1755390622257,8.92282529,188.66,188.6,1.26757933]
[1755390622639,8.92282529,188.65,188.6,1.26757933]
[1755390622765,1.26757933,188.67,188.6,1.26757933]
[1755390622962,8.91949384,188.66,188.6,1.26757933]
[1755390623155,8.91949384,188.65,188.6,1.26757933]
[1755390623454,1.26757933,188.67,188.6,1.26757933]
[1755390623666,8.91682604,188.66,188.6,1.26757933]
[1755390623862,3.99111855,188.65,188.6,1.26757933]
[1755390624163,5.92054089,188.72,188.6,1.26757933]
[1755390624363,1.26757933,188.67,188.6,1.26757933]
[1755390624555,8.91590059,188.66,188.6,1.26757933]
[1755390624755,1.26757933,188.67,188.6,1.26757933]
[1755390624964,8.91462169,188.66,188.6,1.26757933]
[1755390625266,1.26757933,188.67,188.6,1.26757933]
[1755390625465,8.91280723,188.66,188.6,1.26757933]
[1755390625664,1.26757933,188.67,188.6,1.26757933]
[1755390625865,8.91283345,188.66,188.6,1.26757933]
[1755390626066,1.26757933,188.67,188.6,1.26757933]
[1755390626269,8.91309537,188.66,188.6,1.26757933]
[1755390626566,1.26757933,188.67,188.6,1.26757933]
[1755390626778,8.91140024,188.66,188.6,1.26757933]
[1755390627065,1.26757933,188.68,188.62,1.26757933]
[1755390627257,8.87778595,188.67,188.62,1.26757933]
[1755390627566,1.26757933,188.7,188.62,1.26757933]
[1755390627767,8.87672785,188.69,188.62,1.26757933]
[1755390628068,8.87672785,188.68,188.62,1.26757933]
[1755390628266,3.98852817,188.67,188.62,1.26757933]
[1755390628565,1.26757933,188.7,188.62,1.26757933]
[1755390628766,8.87568918,188.69,188.62,1.26757933]
[1755390628967,8.87568918,188.68,188.62,1.26757933]
[1755390629161,3.98805453,188.67,188.62,1.26757933]
[1755390629362,1.26757933,188.7,188.62,1.26757933]
[1755390629559,2.89,188.68,188.63,2.93]
[1755390629759,2.89,188.65,188.62,1.26757933]
[1755390629960,2.89,188.65,188.62,4.19757933]
[1755390632665,2.89,188.65,188.62,1.26757933]
[1755390632871,2.89,188.65,188.63,2.93]
[1755390634069,2.89,188.65,188.61,1.26757933]
[1755390634272,2.89,188.65,188.62,2.93]
[1755390642177,2.89,188.65,188.61,1.26757933]
[1755390642379,2.89,188.65,188.6,2.93]
[1755390642688,2.89,188.63,188.57,1.26757933]
[1755390643176,2.89,188.63,188.58,2.93]
[1755390643577,2.89,188.63,188.57,1.26757933]
[1755390643768,2.89,188.63,188.57,4.19757933]
[1755390645979,2.89,188.63,188.58,2.93]
[1755390647279,2.89,188.63,188.57,1.26757933]
[1755390647479,2.89,188.63,188.59,2.93]
[1755390647976,2.89,188.63,188.58,2.93]
[1755390648883,2.89,188.63,188.57,1.26757933]
[1755390649083,2.89,188.63,188.57,4.19757933]
[1755390649280,2.89,188.63,188.57,2.93]
[1755390649683,1.26757933,188.62,188.56,1.26757933]
[1755390649986,2.86,188.6,188.56,4.19757933]
[1755390650783,2.86,188.6,188.56,2.93]
[1755390651086,3.97853355,188.59,188.56,2.93]
[1755390651285,4.12757933,188.6,188.56,2.93]
[1755390651487,3.97887745,188.59,188.56,2.93]
[1755390651688,4.12757933,188.6,188.56,2.93]
[1755390651986,3.97887742,188.59,188.56,2.93]
[1755390652179,4.12757933,188.6,188.56,2.93]
[1755390652378,8.85812831,188.59,188.56,2.93]
[1755390652578,4.12757933,188.6,188.56,2.93]
[1755390652882,8.85812571,188.59,188.56,2.93]
[1755390653077,4.12757933,188.6,188.56,2.93]
[1755390653278,8.85812575,188.59,188.56,2.93]
[1755390653484,1.26757933,188.6,188.52,1.26757933]
[1755390653690,8.85936481,188.59,188.52,1.26757933]
[1755390653888,1.26757933,188.6,188.52,1.26757933]
[1755390654092,8.85937001,188.59,188.52,1.26757933]
[1755390654288,3.98012574,188.58,188.52,1.26757933]
[1755390654595,1.26757933,188.6,188.52,1.26757933]
[1755390654781,8.86021973,188.59,188.52,1.26757933]
[1755390654982,3.98010673,188.58,188.52,1.26757933]
[1755390655186,1.26757933,188.6,188.52,1.26757933]
[1755390655383,8.85998205,188.59,188.52,1.26757933]
[1755390655692,3.97992184,188.58,188.52,1.26757933]
[1755390655896,1.26757933,188.6,188.52,1.26757933]
[1755390656093,8.85982588,188.59,188.52,1.26757933]
[1755390656294,3.97990331,188.58,188.52,1.26757933]
[1755390656497,8.86046091,188.57,188.52,1.26757933]
[1755390656701,1.26757933,188.58,188.52,1.26757933]
[1755390656892,8.8579245,188.57,188.52,1.26757933]
[1755390657092,1.26757933,188.58,188.52,1.26757933]
[1755390657386,8.90309315,188.57,188.52,1.26757933]
[1755390657593,1.26757933,188.58,188.52,1.26757933]
[1755390657789,8.90172311,188.57,188.52,1.26757933]
[1755390658095,0.92317487,188.57,188.52,1.26757933]
[1755390658592,10.16769848,188.56,188.5,1.26757933]
[1755390658794,1.26757933,188.56,188.5,1.26757933]
[1755390658992,0.92317487,188.57,188.52,1.26757933]
[1755390660396,4.92278542,188.56,188.52,1.26757933]
[1755390660596,0.92317487,188.57,188.52,1.26757933]
[1755390660796,4.92296506,188.56,188.52,1.26757933]
[1755390660997,0.92317487,188.57,188.52,1.26757933]
[1755390661198,4.92301692,188.56,188.52,1.26757933]
[1755390661496,0.92317487,188.57,188.52,1.26757933]
[1755390661699,4.92291887,188.56,188.52,1.26757933]
[1755390661894,0.92317487,188.57,188.52,1.26757933]
[1755390662101,4.92291887,188.56,188.52,1.26757933]
[1755390662311,0.92317487,188.57,188.52,1.26757933]
[1755390662696,4.92331697,188.56,188.52,1.26757933]
[1755390662896,0.92317487,188.57,188.52,1.26757933]
[1755390663100,4.9235301,188.56,188.52,1.26757933]
[1755390663305,0.92317487,188.57,188.52,1.26757933]
[1755390664101,0.92317487,188.57,188.51,1.26757933]
[1755390666308,1.26757933,188.63,188.55,1.26757933]
[1755390666504,8.90175008,188.62,188.55,1.26757933]
[1755390666705,8.90190095,188.61,188.57,1.26757933]
[1755390667008,2.1906685,188.63,188.57,1.26757933]
[1755390667205,8.90222512,188.62,188.57,1.26757933]
[1755390667505,8.90222512,188.61,188.57,1.26757933]
[1755390667707,2.1906685,188.63,188.57,1.26757933]
[1755390667902,8.90229667,188.62,188.57,1.26757933]
[1755390668100,8.90229667,188.61,188.57,1.26757933]
[1755390668411,2.1906685,188.63,188.57,1.26757933]
[1755390668598,8.90272944,188.62,188.53,5.3007]
[1755390668795,8.90272944,188.61,188.53,7.28427332]
[1755390668995,0.92308917,188.63,188.53,7.28427332]
[1755390669202,8.90302893,188.62,188.53,7.28427332]
[1755390669403,8.90302893,188.61,188.53,7.28427332]
[1755390669605,0.92308917,188.63,188.53,7.28427332]
[1755390669905,8.90322659,188.62,188.53,7.28427332]
[1755390670108,8.90322659,188.61,188.53,7.28427332]
[1755390670306,0.92308917,188.63,188.53,7.28427332]
[1755390670504,356.26,188.66,188.56,1.98357332]
[1755390670807,8.90540913,188.65,188.56,1.98357332]
[1755390671003,8.90540913,188.64,188.56,1.98357332]
[1755390671206,356.26,188.66,188.56,1.98357332]
[1755390671401,8.90605176,188.65,188.56,1.98357332]
[1755390671707,8.90605176,188.64,188.56,1.98357332]
[1755390671908,1.98357332,188.69,188.56,1.98357332]
[1755390672099,8.90641871,188.68,188.56,1.98357332]
[1755390672304,8.90641871,188.67,188.56,1.98357332]
[1755390672504,8.90641871,188.66,188.56,1.98357332]
[1755390672700,8.90641871,188.65,188.56,1.98357332]
[1755390672905,8.90641871,188.64,188.56,1.98357332]
[1755390673210,0.92275873,188.67,188.53,1.98357332]
[1755390673211,8.90641871,188.63,188.53,1.98357332]
[1755390673409,8.90641871,188.62,188.53,1.98357332]
[1755390673628,4.92600342,188.61,188.53,1.98357332]
[1755390673913,1.98357332,188.66,188.53,1.98357332]